bitfinex-derivatives/quotes_SOLF0:USTF0_20250816
["timestamp","ask_amount","ask_price","bid_price","bid_amount"]
[1755370264009,9.05749979,188.19,188.18,1.6259863]
[1755370264410,5.11218344,188.19,188.18,1.6259863]
[1755370264613,5.11218344,188.19,188.18,4.5159863]
[1755370265403,8.01218344,188.19,188.18,4.5159863]
[1755370265611,2.9,188.18,188.13,2.89]
[1755370265816,2.9,188.16,188.13,2.89]
[1755370266816,2.9,188.15,188.13,2.89]
[1755370267009,2.9,188.14,188.12,1.6259863]
[1755370267210,2.9,188.14,188.1,1.6259863]
[1755370267410,2.9,188.14,188.09,1.6259863]
[1755370267617,5.1079927,188.13,188.1,2.89]
[1755370267807,2.9,188.14,188.1,2.89]
[1755370268006,2.9,188.12,188.1,2.89]
[1755370270814,9.0520747,188.11,188.06,2.89]
[1755370271020,2.9,188.08,188.03,2.89]
[1755370271318,2.9,188.07,188.03,2.89]
[1755370271517,7.00134233,188.15,188.03,2.89]
[1755370271718,3.94276434,188.14,188.03,2.89]
[1755370271913,2.9,188.12,188.03,2.89]
[1755370272108,2.9,188.1,188.03,2.89]
[1755370272420,2.9,188.08,188.03,2.89]
[1755370273619,2.9,188.13,188.03,2.89]
[1755370273817,4.46381854,188.14,188.03,2.89]
[1755370273818,2.9,188.11,188.03,2.89]
[1755370274013,2.9,188.09,188.03,2.89]
[1755370274317,2.9,188.07,188.0,2.89]
[1755370275118,2.9,188.05,188.0,2.89]
[1755370275718,5.10279425,188.04,188.0,2.89]
[1755370275922,2.9,188.03,188.0,2.89]
[1755370277320,2.9,188.08,188.0,2.89]
[1755370277517,2.9,188.06,188.0,2.89]
[1755370277720,5.09719049,188.05,188.0,2.89]
[1755370277919,2.9,188.04,187.97,5.3167]
[1755370278116,2.9,188.04,188.01,2.89]
[1755370278624,5.3156,188.01,187.97,5.3167]
[1755370279024,5.3156,188.01,187.96,5.317]
[1755370279221,5.3156,188.01,187.97,3.05]
[1755370280020,5.3154,188.02,187.97,3.05]
[1755370280220,2.97,188.05,187.97,2.53752379]
[1755370280419,2.97,188.05,187.98,3.05]
[1755370280818,5.3152,188.03,187.98,3.05]
[1755370281027,2.97,188.05,187.98,3.05]
[1755370281427,5.315,188.03,187.98,3.05]
[1755370283119,5.3154,188.02,187.98,3.05]
[1755370292232,8.2854,188.02,187.98,3.05]
[1755370294434,2.97,188.01,187.98,3.05]
[1755370296236,2.53752379,188.09,187.98,3.05]
[1755370296438,5.08262406,188.08,187.98,3.05]
[1755370296738,2.97,188.07,187.98,3.05]
[1755370296936,2.97,188.07,188.0,2.53752379]
[1755370297140,2.97,188.07,188.01,3.05]
[1755370297844,2.97,188.07,188.02,5.3151]
[1755370298141,2.97,188.07,188.03,3.05]
[1755370300340,2.97,188.07,188.03,5.58752379]
[1755370300635,2.97,188.07,188.04,3.05]
[1755370302141,8.284,188.07,188.04,8.3647]
[1755370302341,8.284,188.07,188.05,3.05]
[1755370302537,2.97,188.14,188.05,3.05]
[1755370302740,7.00134233,188.18,188.07,3.05]
[1755370302741,8.2829,188.11,188.07,3.05]
[1755370302934,8.2829,188.11,188.07,8.3637]
[1755370303242,8.2829,188.11,188.08,3.05]
[1755370304544,5.313,188.1,188.08,3.05]
[1755370304749,2.97,188.17,188.08,5.3136]
[1755370305046,2.97,188.15,188.09,3.05]
[1755370305346,2.97,188.13,188.09,3.05]
[1755370306252,8.2827,188.11,188.09,3.05]
[1755370306450,2.53752379,188.18,188.09,3.05]
[1755370306748,2.97,188.12,188.09,3.05]
[1755370306948,5.3128,188.11,188.09,3.05]
[1755370308150,8.2825,188.12,188.09,3.05]
[1755370308549,2.97,188.2,188.1,3.05]
[1755370308751,5.3124,188.13,188.1,3.05]
[1755370309149,8.3224,188.13,188.1,3.05]
[1755370311648,5.3125,188.12,188.1,3.05]
[1755370315155,5.3124,188.12,188.1,3.05]
[1755370316255,3.01,188.12,188.1,3.05]
[1755370317254,5.3127,188.11,188.1,3.05]
[1755370318657,5.3127,188.11,188.1,4.67351579]
[1755370320256,8.3227,188.11,188.1,4.67351579]
[1755370320453,3.01,188.13,188.08,1.62351579]
[1755370320754,3.01,188.13,188.09,3.01]
[1755370321145,8.3233,188.09,188.08,3.01]
[1755370321348,8.3233,188.09,188.08,4.63351579]
[1755370321554,5.3133,188.09,188.08,4.63351579]
[1755370322651,5.3133,188.09,188.08,3.01]
[1755370325456,8.3233,188.09,188.08,3.01]
[1755370327856,6.9944463,188.19,188.06,2.53741887]
[1755370328061,3.01,188.17,188.07,3.01]
[1755370328261,9.03521098,188.16,188.07,3.01]
[1755370328460,5.313,188.11,188.09,3.01]
[1755370328856,8.323,188.11,188.09,3.01]
[1755370331563,5.313,188.1,188.09,3.01]
[1755370331962,8.323,188.1,188.09,3.01]
[1755370332862,5.313,188.1,188.09,3.01]
[1755370335565,8.323,188.1,188.09,3.01]
[1755370338668,5.313,188.1,188.09,3.01]
[1755370339175,8.323,188.1,188.09,3.01]
[1755370339667,5.313,188.1,188.09,3.01]
[1755370340963,8.323,188.1,188.09,3.01]
[1755370341771,5.313,188.1,188.09,3.01]
[1755370344176,8.323,188.1,188.09,3.01]
[1755370344783,5.313,188.1,188.09,4.63377553]
[1755370346386,10.43998505,188.1,188.09,4.63377553]
[1755370347383,10.4415906,188.1,188.09,4.63377553]
[1755370349987,13.4515906,188.1,188.09,4.63377553]
[1755370351489,10.4415906,188.1,188.09,4.63377553]
[1755370356085,13.4515906,188.1,188.09,4.63377553]
[1755370358290,10.4415906,188.1,188.09,4.63377553]
[1755370358691,13.4515906,188.1,188.09,4.63377553]
[1755370359298,10.4415906,188.1,188.09,4.63377553]
[1755370360594,13.4515906,188.1,188.09,4.63377553]
[1755370361590,10.4415906,188.1,188.09,4.63377553]
[1755370365098,10.45054424,188.1,188.09,4.63377553]
[1755370369501,13.37054424,188.1,188.09,4.63377553]
[1755370371304,17.32515911,188.1,188.09,4.63377553]
[1755370374103,14.40515911,188.1,188.09,4.63377553]
[1755370379815,14.40515063,188.1,188.09,4.63377553]
[1755370381815,17.32515063,188.1,188.09,4.63377553]
[1755370382813,5.13753576,188.1,188.09,4.63377553]
[1755370383818,10.45053576,188.1,188.09,4.63377553]
[1755370384119,5.313,188.1,188.09,4.63377553]
[1755370385019,8.233,188.1,188.09,4.63377553]
[1755370389419,5.313,188.1,188.09,4.63377553]
[1755370392921,8.2328,188.11,188.1,3.01]
[1755370393120,13.37243785,188.11,188.1,4.63377553]
[1755370396921,8.05963785,188.11,188.1,4.63377553]
[1755370397127,5.13963785,188.11,188.1,4.63377553]
[1755370399632,10.45233785,188.11,188.1,4.63377553]
[1755370399832,13.30233785,188.11,188.1,4.63377553]
[1755370400733,8.1627,188.11,188.1,4.63377553]
[1755370401833,8.1627,188.11,188.1,3.01]
[1755370402935,2.85,188.11,188.09,1.62377553]
[1755370403134,2.85,188.11,188.07,4.63377553]
[1755370403730,2.85,188.11,188.08,3.01]
[1755370403930,2.85,188.11,188.09,1.62377553]
[1755370404129,2.85,188.15,188.09,1.62377553]
[1755370404331,2.85,188.13,188.09,1.62377553]
[1755370404630,2.85,188.11,188.1,3.01]
[1755370406240,2.85,188.15,188.09,1.62377553]
[1755370406540,2.85,188.12,188.1,3.01]
[1755370407540,2.85,188.12,188.11,3.01]
[1755370407738,7.73450129,188.12,188.11,3.01]
[1755370408038,11.68261214,188.12,188.11,3.01]
[1755370408640,11.68261214,188.12,188.09,1.62377553]
[1755370408840,4.47934012,188.16,188.1,3.01]
[1755370408841,2.85,188.11,188.1,3.01]
[1755370409443,2.85,188.15,188.09,1.62377553]
[1755370409636,8.83265302,188.14,188.11,3.01]
[1755370409838,8.83265302,188.13,188.12,3.01]
[1755370410643,3.9481277,188.13,188.12,3.01]
[1755370411040,6.7981277,188.13,188.12,3.01]
[1755370411441,2.85,188.17,188.12,3.01]
[1755370411645,2.85,188.15,188.12,3.01]
[1755370411846,5.3124,188.12,188.11,1.62377553]
[1755370412046,8.1624,188.12,188.11,3.01]
[1755370412444,5.3124,188.12,188.09,4.63377553]
[1755370412648,5.3124,188.12,188.1,3.01]
[1755370412948,5.3124,188.12,188.11,3.01]
[1755370413148,8.1624,188.12,188.11,3.01]
[1755370413852,1.62377553,188.15,188.09,1.62377553]
[1755370414047,8.56309722,188.14,188.08,3.01]
[1755370414242,2.85,188.12,188.09,3.01]
[1755370414552,2.85,188.1,188.05,1.62377553]
[1755370414850,2.85,188.1,188.07,3.01]
[1755370415546,8.1636,188.08,188.07,3.01]
[1755370420554,5.3141,188.06,188.05,4.63377553]
[1755370420750,8.1641,188.06,188.05,4.63377553]
[1755370421256,5.3141,188.06,188.05,4.63377553]
[1755370427852,5.3139,188.07,188.05,4.63377553]
[1755370428058,2.85,188.12,188.06,3.01]
[1755370428356,2.85,188.1,188.08,3.01]
[1755370428757,5.3133,188.09,188.08,3.01]
[1755370436663,8.2233,188.09,188.08,3.01]
[1755370438767,5.3133,188.09,188.08,3.01]
[1755370440068,8.2233,188.09,188.08,3.01]
[1755370455284,2.91,188.09,188.02,42.0]
[1755370455583,2.91,188.09,188.04,2.9]
[1755370455777,2.91,188.07,188.04,2.9]
[1755370456278,2.91,188.1,188.06,2.9]
[1755370456479,6.85508959,188.09,188.06,2.9]
[1755370456778,3.94508959,188.08,188.06,2.9]
[1755370456978,2.91,188.09,188.06,2.9]
[1755370457185,3.94508959,188.08,188.06,2.9]
[1755370457482,2.91,188.09,188.06,2.9]
[1755370457686,3.94631914,188.08,188.06,2.9]
[1755370457879,2.91,188.08,188.06,2.9]
[1755370460884,4.47934012,188.12,188.06,2.9]
[1755370461087,3.02,188.07,188.06,2.9]
[1755370463189,8.3338,188.07,188.06,2.9]
[1755370464890,5.3138,188.07,188.06,2.9]
[1755370471601,8.3338,188.07,188.06,2.9]
[1755370472898,5.3138,188.07,188.06,2.9]
[1755370473289,8.3338,188.07,188.06,2.9]
[1755370473698,5.3138,188.07,188.06,2.9]
[1755370475399,5.3142,188.06,188.05,3.08]
[1755370476398,5.3142,188.06,188.05,4.70377553]
[1755370488413,8.3242,188.06,188.05,4.70377553]
[1755370489118,5.3142,188.06,188.05,4.70377553]
[1755370489318,8.1339,188.07,188.05,1.62377553]
[1755370489616,4.47788176,188.13,188.06,3.02]
[1755370489808,3.95011743,188.12,188.1,1.62377553]
[1755370490012,3.95011743,188.12,188.11,3.02]
[1755370490013,8.1324,188.12,188.11,3.02]
[1755370490213,12.08190125,188.12,188.11,3.02]
[1755370492915,5.3122,188.13,188.11,3.02]
[1755370493215,2.82,188.16,188.14,3.02]
[1755370493417,3.94660523,188.15,188.14,3.02]
[1755370493615,6.76660523,188.15,188.14,3.02]
[1755370493917,9.25820523,188.15,188.14,3.02]
[1755370494720,12.07820523,188.15,188.14,3.02]
[1755370495822,8.1316,188.15,188.14,3.02]
[1755370496622,8.1319,188.14,188.13,4.64377553]
[1755370500330,8.1316,188.15,188.13,4.64377553]
[1755370500535,5.3116,188.15,188.14,3.02]
[1755370502933,8.1316,188.15,188.14,3.02]
[1755370504132,8.1322,188.13,188.12,1.62377553]
[1755370504339,8.1322,188.13,188.12,4.64377553]
[1755370504739,8.1322,188.13,188.12,3.02]
[1755370510235,2.82,188.16,188.1,3.02]
[1755370510435,2.82,188.14,188.09,3.02]
[1755370510839,2.82,188.12,188.09,3.02]
[1755370512841,2.82,188.12,188.06,1.62377553]
[1755370513042,2.82,188.12,188.08,3.02]
[1755370513746,8.1333,188.09,188.08,3.02]
[1755370516649,8.1338,188.07,188.06,3.02]
[1755370516848,2.82,188.07,188.03,3.02]
[1755370517450,5.3147,188.04,188.03,3.02]
[1755370523654,5.3145,188.05,188.03,3.02]
[1755370526952,1.62377553,188.1,188.03,3.02]
[1755370527157,2.94,188.11,188.07,3.08]
[1755370527352,2.94,188.09,188.07,3.08]
[1755370527859,1.62377553,188.12,188.07,3.08]
[1755370528054,2.94,188.08,188.07,3.08]
[1755370528257,2.94,188.1,188.07,3.08]
[1755370528455,2.94,188.09,188.07,3.08]
[1755370528954,2.94,188.09,188.08,3.08]
[1755370530056,2.94,188.09,188.06,3.08]
[1755370530564,2.94,188.09,188.05,3.08]
[1755370530958,2.94,188.1,188.05,3.08]
[1755370531262,2.94,188.09,188.06,1.62377553]
[1755370531464,2.94,188.09,188.07,3.08]
[1755370532461,5.3136,188.08,188.07,3.08]
[1755370532655,4.47788176,188.16,188.07,3.08]
[1755370532656,2.94,188.15,188.07,3.08]
[1755370532862,2.94,188.15,188.11,3.08]
[1755370534159,5.3124,188.12,188.11,3.08]
[1755370534359,8.2524,188.12,188.11,3.08]
[1755370537264,5.3124,188.12,188.11,3.08]
[1755370538963,5.3123,188.13,188.11,3.08]
[1755370539163,5.3123,188.13,188.12,4.70377553]
[1755370540668,5.3127,188.11,188.1,4.70377553]
[1755370540868,8.2527,188.11,188.1,4.70377553]
[1755370544069,2.94,188.13,188.04,3.08]
[1755370544259,10.6218,188.18,188.05,3.08]
[1755370544260,2.94,188.11,188.05,3.08]
[1755370544570,2.94,188.09,188.06,3.08]
[1755370544868,5.3138,188.07,188.06,3.08]
[1755370545073,8.2538,188.07,188.06,3.08]
[1755370550276,5.3138,188.07,188.06,3.08]
[1755370554773,8.2538,188.07,188.06,3.08]
[1755370560780,5.3138,188.07,188.06,3.08]
[1755370564087,8.2538,188.07,188.06,3.08]
[1755370567794,5.3147,188.04,188.03,1.62488841]
[1755370567991,5.3147,188.04,188.03,4.47488841]
[1755370574193,5.3147,188.04,188.03,2.85]
[1755370583500,5.315,188.03,188.02,1.62488841]
[1755370583999,5.315,188.03,188.02,4.68488841]
[1755370588201,5.3148,188.04,188.03,3.06]
[1755370593308,8.1548,188.04,188.03,3.06]
[1755370593708,5.3148,188.04,188.03,3.06]
[1755370603317,8.1548,188.04,188.03,3.06]
[1755370604120,5.3148,188.04,188.03,3.06]
[1755370605022,2.84,188.1,188.03,3.06]
[1755370605222,3.95176373,188.09,188.06,1.62488841]
[1755370605515,3.95176373,188.08,188.07,3.06]
[1755370605819,6.79176373,188.08,188.07,3.06]
[1755370606321,12.10536373,188.08,188.07,3.06]
[1755370607321,9.26536373,188.08,188.07,3.06]
[1755370607823,12.10536373,188.08,188.07,3.06]
[1755370609122,9.26536373,188.08,188.07,3.06]
[1755370610523,12.27536373,188.08,188.07,3.06]
[1755370611624,9.26536373,188.08,188.07,3.06]
[1755370611824,12.27536373,188.08,188.07,3.06]
[1755370612024,3.01,188.07,188.05,2.95]
[1755370613224,5.3141,188.06,188.05,2.95]
[1755370616720,5.3141,188.06,188.05,4.57488841]
[1755370623332,3.01,188.06,187.99,42.0]
[1755370623526,3.01,188.06,188.02,1.62488841]
[1755370623923,5.315,188.03,188.02,1.62488841]
[1755370624432,5.315,188.03,188.02,4.57488841]
[1755370626326,5.3148,188.04,188.03,2.95]
[1755370626527,5.3148,188.04,188.03,4.57488841]
[1755370635443,3.01,188.11,188.04,2.95]
[1755370635636,3.01,188.09,188.06,2.95]
[1755370635832,3.01,188.09,188.05,4.57488841]
[1755370636032,3.01,188.09,188.05,1.62488841]
[1755370636547,5.3141,188.06,188.05,4.57488841]
[1755370638344,8.3241,188.06,188.05,4.57488841]
[1755370647952,5.3141,188.06,188.05,4.57488841]
[1755370648350,8.3241,188.06,188.05,4.57488841]
[1755370655472,5.3149,188.04,188.01,5.3153]
[1755370655662,3.01,188.09,188.03,1.62488841]
[1755370655967,3.01,188.07,188.03,1.62488841]
[1755370656168,8.3246,188.05,188.04,2.99]
[1755370657462,5.3146,188.05,188.04,2.99]
[1755370658361,8.3246,188.05,188.04,2.99]
[1755370661862,5.3146,188.05,188.04,2.99]
[1755370677280,3.01,188.07,188.04,2.99]
[1755370677485,2.92,188.08,188.07,3.0]
[1755370678782,8.2338,188.08,188.07,3.0]
[1755370682786,5.3133,188.09,188.07,3.0]
[1755370683084,2.92,188.12,188.1,3.0]
[1755370683284,2.92,188.11,188.1,3.0]
[1755370684282,8.2327,188.11,188.1,3.0]
[1755370695796,5.3127,188.11,188.1,3.0]
[1755370697003,8.2327,188.11,188.1,3.0]
[1755370720817,3.01,188.1,188.04,2.85]
[1755370721017,3.01,188.08,188.02,2.85]
[1755370721319,3.01,188.06,188.02,2.85]
[1755370721519,5.315,188.03,188.02,2.85]
[1755370722916,5.3148,188.04,188.02,2.85]
[1755370724606,5.3148,188.04,188.03,4.47488841]
[1755370736930,8.2048,188.04,188.03,4.47488841]
[1755370741337,5.3148,188.04,188.03,4.47488841]
[1755370741531,1.62488841,188.11,188.03,1.62488841]
[1755370741737,2.89,188.06,188.04,2.93]
[1755370743334,5.3145,188.05,188.04,2.93]
[1755370746935,8.2045,188.05,188.04,2.93]
[1755370756140,5.3145,188.05,188.04,2.93]
[1755370757139,8.2045,188.05,188.04,2.93]
[1755370760850,4.46676351,188.14,188.04,2.93]
[1755370761049,2.84,188.12,188.11,1.62488841]
[1755370761249,2.84,188.12,188.11,4.44488841]
[1755370761951,8.1524,188.12,188.11,4.44488841]
[1755370763353,5.3124,188.12,188.11,4.44488841]
[1755370763548,2.84,188.14,188.12,2.82]
[1755370763747,2.84,188.19,188.13,1.62488841]
[1755370763952,3.93795209,188.18,188.14,2.82]
[1755370764151,3.93795209,188.17,188.14,2.82]
[1755370764348,2.84,188.15,188.14,2.82]
[1755370764548,6.77625596,188.15,188.14,2.82]
[1755370765153,2.84,188.15,188.14,2.82]
[1755370765349,8.1517,188.15,188.14,2.82]
[1755370779869,5.3114,188.16,188.14,2.82]
[1755370780068,5.3114,188.16,188.15,4.44488841]
[1755370785263,8.1514,188.16,188.15,4.44488841]
[1755370790369,5.3114,188.16,188.15,4.44488841]
[1755370792775,5.3111,188.17,188.15,1.62488841]
[1755370792975,5.3111,188.17,188.16,4.56488841]
[1755370795074,8.3211,188.17,188.16,4.56488841]
[1755370795276,5.3111,188.17,188.16,4.56488841]
[1755370803390,8.3211,188.17,188.16,4.56488841]
[1755370803686,8.3211,188.17,188.16,2.94]
[1755370804080,5.3114,188.16,188.15,1.62488841]
[1755370804286,8.3214,188.16,188.15,4.56488841]
[1755370804586,3.01,188.18,188.13,4.56488841]
[1755370804786,3.01,188.13,188.04,42.0]
[1755370804985,3.01,188.11,188.04,1.62488841]
[1755370805185,3.01,188.11,188.06,1.62488841]
[1755370805485,3.01,188.13,188.1,1.62488841]
[1755370805787,3.01,188.13,188.07,2.94]
[1755370805980,3.01,188.13,188.06,1.62488841]
[1755370806180,3.01,188.13,188.08,1.62488841]
[1755370806380,3.01,188.13,188.09,2.94]
[1755370806781,3.01,188.14,188.11,2.94]
[1755370808190,3.01,188.14,188.09,2.94]
[1755370808385,4.63488841,188.14,188.09,2.94]
[1755370808590,3.01,188.13,188.07,2.94]
[1755370810885,3.01,188.13,188.08,1.62488841]
[1755370811084,3.01,188.13,188.09,2.94]
[1755370815286,5.313,188.1,188.09,2.94]
[1755370825999,8.243,188.1,188.09,2.94]
[1755370827194,5.313,188.1,188.09,2.94]
[1755370833300,8.243,188.1,188.09,2.94]
[1755370834998,2.93,188.11,188.04,1.62488841]
[1755370835298,2.93,188.09,188.05,2.83]
[1755370835892,8.2441,188.06,188.05,2.83]
[1755370836195,12.24898841,188.14,188.05,2.83]
[1755370836401,5.3139,188.07,188.05,2.83]
[1755370836596,5.3139,188.07,188.06,4.45488841]
[1755370838603,2.93,188.15,188.07,2.83]
[1755370838804,2.93,188.15,188.1,2.83]
[1755370839002,5.3128,188.11,188.1,2.83]
[1755370840304,8.2428,188.11,188.1,2.83]
[1755370842910,5.3128,188.11,188.1,2.83]
[1755370851810,3.01,188.17,188.1,2.83]
[1755370852106,3.01,188.17,188.15,1.62488841]
[1755370852318,3.01,188.17,188.16,2.88]
[1755370852517,3.01,188.2,188.16,2.88]
[1755370852714,3.01,188.2,188.19,2.88]
[1755370854912,3.01,188.22,188.19,2.88]
[1755370855113,3.01,188.22,188.21,2.88]
[1755370858115,4.5267,188.24,188.21,2.88]
[1755370858320,3.01,188.23,188.21,2.88]
[1755370859119,5.3097,188.22,188.21,2.88]
[1755370862319,8.3197,188.22,188.21,2.88]
[1755370864719,4.5267,188.24,188.18,4.50488841]
[1755370865020,3.01,188.23,188.2,1.62488841]
[1755370865227,5.3097,188.22,188.21,2.88]
[1755370865525,8.3197,188.22,188.21,2.88]
[1755370865921,5.3097,188.22,188.21,2.88]
[1755370866119,4.5267,188.24,188.2,1.62488841]
[1755370866326,4.5267,188.24,188.23,4.50488841]
[1755370867015,9.8359,188.24,188.23,4.50488841]
[1755370867213,4.5267,188.24,188.23,4.50488841]
[1755370867624,5.3087,188.26,188.23,9.81428841]
[1755370867819,5.3087,188.26,188.25,4.50488841]
[1755370868128,128.48,188.32,188.26,2.88]
[1755370868325,3.01,188.31,188.3,1.62488841]
[1755370868625,3.01,188.31,188.3,4.50488841]
[1755370868826,8.3172,188.31,188.3,4.50488841]
[1755370869326,5.3072,188.31,188.3,4.50488841]
[1755370869722,3.01,188.33,188.31,2.88]
[1755370869928,3.01,188.34,188.33,2.88]
[1755370870529,5.3063,188.34,188.33,2.88]
[1755370871419,3.01,188.36,188.33,2.88]
[1755370871631,5.306,188.36,188.33,2.88]
[1755370871928,3.01,188.38,188.3,2.88]
[1755370872126,5.3066,188.33,188.3,8.1874]
[1755370872429,5.3066,188.33,188.31,2.88]
[1755370872630,3.01,188.35,188.31,2.88]
[1755370873030,3.01,188.36,188.31,2.88]
[1755370873923,3.01,188.35,188.31,2.88]
[1755370874323,5.3064,188.34,188.31,2.88]
[1755370874724,5.3064,188.34,188.31,5.3072]
[1755370875023,5.3064,188.34,188.32,2.88]
[1755370878123,5.3064,188.34,188.32,5.4110713]
[1755370878326,5.3064,188.34,188.33,2.88]
[1755370888834,3.0,188.34,188.32,2.5310713]
[1755370889035,3.0,188.34,188.27,2.95]
[1755370890645,3.0,188.34,188.28,1.62054675]
[1755370890843,3.0,188.34,188.29,2.95]
[1755370892044,4.62054675,188.34,188.28,1.62054675]
[1755370892244,128.58,188.41,188.28,1.62054675]
[1755370892448,3.0,188.33,188.28,1.62054675]
[1755370892644,3.0,188.33,188.28,4.57054675]
[1755370892847,3.0,188.33,188.28,2.95]
[1755370894342,3.0,188.33,188.26,1.62054675]
[1755370894545,3.0,188.33,188.29,2.95]
[1755370896752,3.0,188.33,188.3,2.95]
[1755370897152,3.0,188.33,188.31,2.95]
[1755370897646,128.58,188.41,188.31,2.95]
[1755370897647,3.0,188.37,188.31,2.95]
[1755370897849,3.0,188.37,188.32,1.62054675]
[1755370898046,3.0,188.37,188.33,2.95]
[1755370899251,3.0,188.37,188.3,1.62054675]
[1755370899450,3.0,188.37,188.34,2.95]
[1755370899647,3.0,188.37,188.35,2.95]
[1755370903251,131.11156573,188.41,188.35,2.95]
[1755370903552,3.0,188.4,188.35,2.95]
[1755370912653,3.0,188.4,188.32,2.95]
[1755370917262,131.58,188.41,188.32,2.95]
[1755370917460,3.0,188.4,188.32,2.95]
[1755370922768,3.0,188.4,188.34,2.95]
[1755370935276,128.58,188.41,188.34,2.95]
[1755370935467,3.0,188.4,188.34,2.95]
[1755370947281,4.32189526,188.39,188.34,2.95]
[1755370947582,3.0,188.38,188.34,2.95]
[1755370948476,3.0,188.35,188.25,5.9457146]
[1755370948679,3.0,188.33,188.26,3.05]
[1755370949378,3.74976981,188.32,188.26,3.05]
[1755370949584,1.6196631,188.34,188.27,1.6196631]
[1755370949782,6.75072748,188.33,188.28,3.05]
[1755370949987,3.75072748,188.32,188.28,3.05]
[1755370950885,1.6196631,188.34,188.28,3.05]
[1755370951082,3.0,188.32,188.28,3.05]
[1755370954888,3.0,188.32,188.28,4.6696631]
[1755370955284,3.0,188.32,188.28,1.6196631]
[1755370955485,3.0,188.32,188.29,3.05]
[1755370955683,3.0,188.33,188.21,362.0699]
[1755370955880,5.37912687,188.32,188.27,3.05]
[1755370956080,3.0,188.31,188.27,3.05]
[1755370956485,1.6196631,188.32,188.27,3.05]
[1755370956686,3.0,188.3,188.27,3.05]
[1755370957086,3.0,188.33,188.29,3.05]
[1755370957288,1.6196631,188.35,188.29,3.05]
[1755370957482,1.6196631,188.37,188.31,3.05]
[1755370957692,3.0,188.37,188.33,3.05]
[1755370958384,84.68347014,188.4,188.33,3.05]
[1755370958592,1.6196631,188.37,188.33,3.05]
[1755370958786,3.0,188.35,188.33,3.05]
[1755370959191,1.6196631,188.37,188.3,1.6196631]
[1755370959394,3.0,188.35,188.31,3.05]
[1755370959592,3.0,188.37,188.33,3.05]
[1755370959792,3.0,188.38,188.33,1.6196631]
[1755370960088,3.75843645,188.37,188.36,3.05]
[1755370960395,3.0,188.39,188.36,3.05]
[1755370960588,3.75848992,188.38,188.36,3.05]
[1755370960889,3.0,188.39,188.36,3.05]
[1755370961089,3.75848992,188.38,188.36,3.05]
[1755370961289,3.0,188.39,188.36,3.05]
[1755370961491,3.75847752,188.38,188.36,3.05]
[1755370961693,3.0,188.39,188.36,3.05]
[1755370961891,3.75847752,188.38,188.36,3.05]
[1755370962190,3.0,188.39,188.35,3.05]
[1755370962494,3.75832663,188.38,188.35,3.05]
[1755370962685,3.0,188.38,188.35,3.05]
[1755370963291,3.0,188.39,188.33,3.05]
[1755370963490,3.0,188.37,188.33,3.05]